[Event "Titled Tuesday Blitz December 06 Early 2022"]
[White "Kleiman, Jake"]
[Black "Buscar, Michael"]
[WhiteFideId "2020041"]
[BlackFideId "2603616"]
[WhiteElo "2554"]
[BlackElo "2010"]
[Result "1/2-1/2"]
[Round "02"]
[TimeControl "180+1"]
[Date "2022.12.07"]
[WhiteClock "0:00:11"]
[BlackClock "0:00:12"]

1. Nf3 {[%clk 0:03:00]}  d5 {[%clk 0:02:58]} 2. g3 {[%clk 0:03:00]}  Nf6 {[%clk 0:02:57]} 3. Bg2 {[%clk 0:02:53]}  Bg4 {[%clk 0:02:57]} 4. O-O {[%clk 0:02:54]}  e6 {[%clk 0:02:56]} 5. d3 {[%clk 0:02:54]}  Be7 {[%clk 0:02:56]} 6. c4 {[%clk 0:02:55]}  c6 {[%clk 0:02:56]} 7. cxd5 {[%clk 0:02:52]}  exd5 {[%clk 0:02:55]} 8. Nc3 {[%clk 0:02:51]}  O-O {[%clk 0:02:56]} 9. Qc2 {[%clk 0:02:51]}  Nbd7 {[%clk 0:02:55]} 10. e4 {[%clk 0:02:51]}  dxe4 {[%clk 0:02:50]} 11. dxe4 {[%clk 0:02:52]}  Ne8 {[%clk 0:02:39]} 12. Be3 {[%clk 0:02:47]}  Nc7 {[%clk 0:02:39]} 13. Nd4 {[%clk 0:02:36]}  Ne6 {[%clk 0:02:30]} 14. Nb3 {[%clk 0:02:35]}  Ndc5 {[%clk 0:02:25]} 15. h3 {[%clk 0:02:32]}  Nxb3 {[%clk 0:02:22]} 16. Qxb3 {[%clk 0:02:28]}  Bh5 {[%clk 0:02:18]} 17. Qxb7 {[%clk 0:02:19]}  Rb8 {[%clk 0:02:18]} 18. Qxc6 {[%clk 0:02:16]}  Rxb2 {[%clk 0:02:18]} 19. g4 {[%clk 0:02:16]}  Bg6 {[%clk 0:02:18]} 20. Nd5 {[%clk 0:02:05]}  Bg5 {[%clk 0:02:11]} 21. f4 {[%clk 0:02:04]}  Rxg2+ {[%clk 0:02:04]} 22. Kxg2 {[%clk 0:01:59]}  Bxe4+ {[%clk 0:02:04]} 23. Kh2 {[%clk 0:01:58]}  Bxd5 {[%clk 0:02:04]} 24. Qb5 {[%clk 0:01:41]}  Be7 {[%clk 0:01:50]} 25. Rad1 {[%clk 0:01:39]}  Nc7 {[%clk 0:01:50]} 26. Qa5 {[%clk 0:01:35]}  Qd6 {[%clk 0:01:28]} 27. Bxa7 {[%clk 0:01:11]}  Ra8 {[%clk 0:01:18]} 28. Rf2 {[%clk 0:00:50]}  Qc6 {[%clk 0:01:06]} 29. Qb6 {[%clk 0:00:42]}  h6 {[%clk 0:00:29]} 30. Qxc6 {[%clk 0:00:36]}  Bxc6 {[%clk 0:00:29]} 31. Rc1 {[%clk 0:00:35]}  Rxa7 {[%clk 0:00:25]} 32. Rxc6 {[%clk 0:00:35]}  Nd5 {[%clk 0:00:23]} 33. Kg2 {[%clk 0:00:27]}  Nb4 {[%clk 0:00:20]} 34. Rc8+ {[%clk 0:00:26]}  Kh7 {[%clk 0:00:21]} 35. a3 {[%clk 0:00:17]}  Rxa3 {[%clk 0:00:19]} 36. Rc7 {[%clk 0:00:17]}  Nd5 {[%clk 0:00:19]} 37. Rd7 {[%clk 0:00:18]}  Rd3 {[%clk 0:00:17]} 38. Kh2 {[%clk 0:00:14]}  Kg6 {[%clk 0:00:16]} 39. f5+ {[%clk 0:00:08]}  Kf6 {[%clk 0:00:16]} 40. Ra2 {[%clk 0:00:04]}  Nf4 {[%clk 0:00:08]} 41. Ra6+ {[%clk 0:00:04]}  Kg5 {[%clk 0:00:08]} 42. Rxd3 {[%clk 0:00:04]}  Nxd3 {[%clk 0:00:07]} 43. Ra7 {[%clk 0:00:04]}  Kf6 {[%clk 0:00:08]} 44. Ra6+ {[%clk 0:00:05]}  Kg5 {[%clk 0:00:08]} 45. Ra7 {[%clk 0:00:05]}  Bd6+ {[%clk 0:00:09]} 46. Kg2 {[%clk 0:00:05]}  Ne5 {[%clk 0:00:09]} 47. Ra6 {[%clk 0:00:04]}  Bc5 {[%clk 0:00:09]} 48. Ra4 {[%clk 0:00:04]}  Nd3 {[%clk 0:00:09]} 49. Rc4 {[%clk 0:00:04]}  Nf4+ {[%clk 0:00:09]} 50. Kf3 {[%clk 0:00:04]}  Bd6 {[%clk 0:00:10]} 51. Re4 {[%clk 0:00:03]}  f6 {[%clk 0:00:09]} 52. Rd4 {[%clk 0:00:04]}  Be5 {[%clk 0:00:10]} 53. Re4 {[%clk 0:00:04]}  Nxh3 {[%clk 0:00:10]} 54. Rb4 {[%clk 0:00:04]}  h5 {[%clk 0:00:10]} 55. Rb7 {[%clk 0:00:05]}  hxg4+ {[%clk 0:00:10]} 56. Ke4 {[%clk 0:00:06]}  g3 {[%clk 0:00:09]} 57. Rxg7+ {[%clk 0:00:06]}  Kh4 {[%clk 0:00:10]} 58. Kf3 {[%clk 0:00:05]}  Ng5+ {[%clk 0:00:11]} 59. Kg2 {[%clk 0:00:06]}  Kg4 {[%clk 0:00:11]} 60. Rg6 {[%clk 0:00:06]}  Kxf5 {[%clk 0:00:11]} 61. Rg8 {[%clk 0:00:07]}  Kg4 {[%clk 0:00:12]} 62. Ra8 {[%clk 0:00:08]}  Kf4 {[%clk 0:00:13]} 63. Ra4+ {[%clk 0:00:09]}  Ne4 {[%clk 0:00:13]} 64. Rc4 {[%clk 0:00:08]}  f5 {[%clk 0:00:13]} 65. Rc2 {[%clk 0:00:09]}  Ng5 {[%clk 0:00:13]} 66. Re2 {[%clk 0:00:10]}  Bd4 {[%clk 0:00:13]} 67. Rd2 {[%clk 0:00:11]}  Bf2 {[%clk 0:00:14]} 68. Ra2 {[%clk 0:00:11]}  Kg4 {[%clk 0:00:14]} 69. Ra4+ {[%clk 0:00:12]}  f4 {[%clk 0:00:15]} 70. Rb4 {[%clk 0:00:12]}  Ne6 {[%clk 0:00:15]} 71. Rc4 {[%clk 0:00:12]}  Nd4 {[%clk 0:00:15]} 72. Kf1 {[%clk 0:00:12]}  f3 {[%clk 0:00:16]} 73. Rc3 {[%clk 0:00:10]}  Kf4 {[%clk 0:00:16]} 74. Rd3 {[%clk 0:00:11]}  Nf5 {[%clk 0:00:16]} 75. Rxf3+ {[%clk 0:00:11]}  Kxf3 {[%clk 0:00:12]} 1/2-1/2


[Site "https://www.chess.com"]

[Event "Titled Tuesday Blitz December 06 Early 2022"]
[White "Le, Tuan Minh"]
[Black "Koellner, Ruben Gideon"]
[WhiteFideId "12401153"]
[BlackFideId "12993093"]
[WhiteElo "2530"]
[BlackElo "2303"]
[Result "1/2-1/2"]
[Round "02"]
[TimeControl "180+1"]
[Date "2022.12.06"]
[WhiteClock "0:00:08"]
[BlackClock "0:00:03"]

1. d4 {[%clk 0:02:43]}  d6 {[%clk 0:02:59]} 2. e4 {[%clk 0:02:39]}  Nf6 {[%clk 0:02:59]} 3. Nc3 {[%clk 0:02:39]}  e5 {[%clk 0:02:59]} 4. Nf3 {[%clk 0:02:33]}  Nbd7 {[%clk 0:02:59]} 5. Bc4 {[%clk 0:02:29]}  Be7 {[%clk 0:02:57]} 6. O-O {[%clk 0:02:29]}  c6 {[%clk 0:02:57]} 7. a4 {[%clk 0:02:29]}  h6 {[%clk 0:02:57]} 8. Re1 {[%clk 0:02:29]}  Qc7 {[%clk 0:02:57]} 9. h3 {[%clk 0:02:28]}  Nf8 {[%clk 0:02:58]} 10. Be3 {[%clk 0:02:27]}  g5 {[%clk 0:02:57]} 11. Nh2 {[%clk 0:02:20]}  Ng6 {[%clk 0:02:56]} 12. Bb3 {[%clk 0:02:12]}  Kf8 {[%clk 0:02:55]} 13. a5 {[%clk 0:01:55]}  a6 {[%clk 0:02:49]} 14. Na4 {[%clk 0:01:48]}  Be6 {[%clk 0:02:30]} 15. Nb6 {[%clk 0:01:43]}  Rd8 {[%clk 0:02:29]} 16. Bxe6 {[%clk 0:01:30]}  fxe6 {[%clk 0:02:29]} 17. Qd3 {[%clk 0:01:28]}  Kg7 {[%clk 0:02:26]} 18. Rad1 {[%clk 0:01:27]}  Rhe8 {[%clk 0:02:13]} 19. Qb3 {[%clk 0:01:08]}  d5 {[%clk 0:02:12]} 20. dxe5 {[%clk 0:01:08]}  Nxe5 {[%clk 0:02:10]} 21. exd5 {[%clk 0:01:08]}  exd5 {[%clk 0:02:09]} 22. f4 {[%clk 0:01:04]}  gxf4 {[%clk 0:01:56]} 23. Bxf4 {[%clk 0:01:05]}  Bd6 {[%clk 0:01:56]} 24. Nf1 {[%clk 0:00:50]}  Ng6 {[%clk 0:01:54]} 25. Bxd6 {[%clk 0:00:48]}  Qxd6 {[%clk 0:01:55]} 26. Ng3 {[%clk 0:00:48]}  Re5 {[%clk 0:01:25]} 27. Rf1 {[%clk 0:00:44]}  Qc5+ {[%clk 0:00:59]} 28. Kh1 {[%clk 0:00:44]}  Ne4 {[%clk 0:00:58]} 29. Nxe4 {[%clk 0:00:28]}  Rxe4 {[%clk 0:00:59]} 30. Qf3 {[%clk 0:00:28]}  Rf8 {[%clk 0:00:54]} 31. Qg3 {[%clk 0:00:29]}  Qe3 {[%clk 0:00:46]} 32. Qc7+ {[%clk 0:00:21]}  Re7 {[%clk 0:00:45]} 33. Qd6 {[%clk 0:00:21]}  Qe5 {[%clk 0:00:38]} 34. Qa3 {[%clk 0:00:18]}  Rxf1+ {[%clk 0:00:35]} 35. Rxf1 {[%clk 0:00:18]}  Rf7 {[%clk 0:00:34]} 36. Rxf7+ {[%clk 0:00:15]}  Kxf7 {[%clk 0:00:35]} 37. Na4 {[%clk 0:00:16]}  Qe1+ {[%clk 0:00:30]} 38. Kh2 {[%clk 0:00:16]}  Qe5+ {[%clk 0:00:30]} 39. Kg1 {[%clk 0:00:14]}  Qd4+ {[%clk 0:00:22]} 40. Kh2 {[%clk 0:00:15]}  Qf4+ {[%clk 0:00:18]} 41. Qg3 {[%clk 0:00:16]}  Qxa4 {[%clk 0:00:13]} 42. Qc7+ {[%clk 0:00:15]}  Kf6 {[%clk 0:00:13]} 43. Qxb7 {[%clk 0:00:13]}  Qf4+ {[%clk 0:00:12]} 44. Kh1 {[%clk 0:00:13]}  Qc1+ {[%clk 0:00:12]} 45. Kh2 {[%clk 0:00:14]}  Qf4+ {[%clk 0:00:12]} 46. Kh1 {[%clk 0:00:14]}  Qc4 {[%clk 0:00:12]} 47. b3 {[%clk 0:00:12]}  Qxc2 {[%clk 0:00:09]} 48. Qxa6 {[%clk 0:00:12]}  Qc1+ {[%clk 0:00:09]} 49. Kh2 {[%clk 0:00:12]}  Qf4+ {[%clk 0:00:07]} 50. Kh1 {[%clk 0:00:13]}  Qc1+ {[%clk 0:00:07]} 51. Kh2 {[%clk 0:00:13]}  Nf4 {[%clk 0:00:07]} 52. Qc8 {[%clk 0:00:08]}  Qd2 {[%clk 0:00:04]} 53. Qf8+ {[%clk 0:00:08]}  Ke5 {[%clk 0:00:05]} 54. Qg7+ {[%clk 0:00:09]}  Ke4 {[%clk 0:00:05]} 55. a6 {[%clk 0:00:09]}  Qa2 {[%clk 0:00:03]} 56. a7 {[%clk 0:00:10]}  d4 {[%clk 0:00:03]} 57. Qe7+ {[%clk 0:00:08]}  Kd3 {[%clk 0:00:03]} 58. Qh7+ {[%clk 0:00:09]}  Ke3 {[%clk 0:00:03]} 59. Qe7+ {[%clk 0:00:09]}  Kd3 {[%clk 0:00:03]} 60. Qg7 {[%clk 0:00:09]}  Kc3 {[%clk 0:00:02]} 61. Qg3+ {[%clk 0:00:09]}  Nd3 {[%clk 0:00:02]} 62. Qb8 {[%clk 0:00:10]}  Nf4 {[%clk 0:00:02]} 63. Qxf4 {[%clk 0:00:10]}  Qxa7 {[%clk 0:00:03]} 64. Qxh6 {[%clk 0:00:09]}  Qc5 {[%clk 0:00:02]} 65. Qc1+ {[%clk 0:00:09]}  Kb4 {[%clk 0:00:02]} 66. Qb1 {[%clk 0:00:09]}  Qc3 {[%clk 0:00:01]} 67. h4 {[%clk 0:00:10]}  d3 {[%clk 0:00:02]} 68. h5 {[%clk 0:00:10]}  d2 {[%clk 0:00:02]} 69. Qe4+ {[%clk 0:00:08]}  Kxb3 {[%clk 0:00:03]} 70. Qe6+ {[%clk 0:00:08]}  Kc2 {[%clk 0:00:03]} 71. Qg6+ {[%clk 0:00:09]}  Kc1 {[%clk 0:00:03]} 72. Qg5 {[%clk 0:00:09]}  Kc2 {[%clk 0:00:02]} 73. Qg6+ {[%clk 0:00:09]}  Kc1 {[%clk 0:00:02]} 74. Qg5 {[%clk 0:00:10]}  Kb2 {[%clk 0:00:02]} 75. Qg4 {[%clk 0:00:06]}  Qe5+ {[%clk 0:00:02]} 76. Kh3 {[%clk 0:00:05]}  Qe3+ {[%clk 0:00:03]} 77. g3 {[%clk 0:00:05]}  Qe1 {[%clk 0:00:02]} 78. Qd4+ {[%clk 0:00:06]}  Kc1 {[%clk 0:00:02]} 79. Qc4+ {[%clk 0:00:06]}  Kb1 {[%clk 0:00:02]} 80. Qb3+ {[%clk 0:00:06]}  Kc1 {[%clk 0:00:03]} 81. Qc3+ {[%clk 0:00:07]}  Kb1 {[%clk 0:00:03]} 82. Qb3+ {[%clk 0:00:07]}  Kc1 {[%clk 0:00:03]} 83. Qc3+ {[%clk 0:00:08]}  Kd1 {[%clk 0:00:04]} 84. Qf3+ {[%clk 0:00:07]}  Qe2 {[%clk 0:00:04]} 85. Qh1+ {[%clk 0:00:07]}  Kc2 {[%clk 0:00:04]} 86. Qxc6+ {[%clk 0:00:08]}  Kb1 {[%clk 0:00:04]} 87. Qb6+ {[%clk 0:00:07]}  Kc1 {[%clk 0:00:04]} 88. Qc5+ {[%clk 0:00:08]}  Kb1 {[%clk 0:00:05]} 89. Qb4+ {[%clk 0:00:07]}  Kc2 {[%clk 0:00:05]} 90. Qc5+ {[%clk 0:00:07]}  Kd3 {[%clk 0:00:05]} 91. Qb5+ {[%clk 0:00:08]}  Ke3 {[%clk 0:00:05]} 92. Qe5+ {[%clk 0:00:08]}  Kf2 {[%clk 0:00:05]} 93. Qc5+ {[%clk 0:00:09]}  Ke1 {[%clk 0:00:05]} 94. Qa5 {[%clk 0:00:06]}  Qf1+ {[%clk 0:00:04]} 95. Kh4 {[%clk 0:00:07]}  Ke2 {[%clk 0:00:04]} 96. Qb5+ {[%clk 0:00:07]}  Ke1 {[%clk 0:00:04]} 97. Qa5 {[%clk 0:00:07]}  Qh1+ {[%clk 0:00:04]} 98. Kg5 {[%clk 0:00:07]}  Qe4 {[%clk 0:00:03]} 99. h6 {[%clk 0:00:06]}  Qe3+ {[%clk 0:00:03]} 100. Kh5 {[%clk 0:00:07]}  Qe2+ {[%clk 0:00:02]} 101. Kg6 {[%clk 0:00:06]}  Qe6+ {[%clk 0:00:02]} 102. Kg7 {[%clk 0:00:06]}  Ke2 {[%clk 0:00:03]} 103. Qb5+ {[%clk 0:00:06]}  Ke1 {[%clk 0:00:03]} 104. Qb4 {[%clk 0:00:06]}  Ke2 {[%clk 0:00:03]} 105. Qb5+ {[%clk 0:00:07]}  Ke1 {[%clk 0:00:03]} 106. Qa5 {[%clk 0:00:08]}  Ke2 {[%clk 0:00:03]} 107. Qb5+ {[%clk 0:00:08]} 1/2-1/2


[Site "https://www.chess.com"]

[Event "Titled Tuesday Blitz December 06 Early 2022"]
[White "Lenderman, Aleksandr"]
[Black "Sharafiev, Azat"]
[WhiteFideId "2021285"]
[BlackFideId "4186214"]
[WhiteElo "2607"]
[BlackElo "2350"]
[Result "1-0"]
[Round "02"]
[TimeControl "180+1"]
[Date "2022.12.06"]
[WhiteClock "0:01:35"]
[BlackClock "0:00:08"]

1. e4 {[%clk 0:03:00]}  c5 {[%clk 0:02:59]} 2. Nf3 {[%clk 0:03:01]}  Nc6 {[%clk 0:03:00]} 3. Bb5 {[%clk 0:03:00]}  g6 {[%clk 0:02:59]} 4. O-O {[%clk 0:02:58]}  Bg7 {[%clk 0:02:59]} 5. Re1 {[%clk 0:02:59]}  Nf6 {[%clk 0:02:59]} 6. Bxc6 {[%clk 0:02:58]}  dxc6 {[%clk 0:02:56]} 7. d3 {[%clk 0:02:59]}  Bg4 {[%clk 0:02:51]} 8. Nbd2 {[%clk 0:02:58]}  Nd7 {[%clk 0:02:48]} 9. h3 {[%clk 0:02:58]}  Bxf3 {[%clk 0:02:48]} 10. Nxf3 {[%clk 0:02:58]}  e5 {[%clk 0:02:48]} 11. Bg5 {[%clk 0:02:57]}  f6 {[%clk 0:02:47]} 12. Be3 {[%clk 0:02:57]}  Qe7 {[%clk 0:02:46]} 13. c3 {[%clk 0:02:57]}  b6 {[%clk 0:01:56]} 14. d4 {[%clk 0:02:53]}  cxd4 {[%clk 0:01:55]} 15. cxd4 {[%clk 0:02:54]}  exd4 {[%clk 0:01:48]} 16. Nxd4 {[%clk 0:02:54]}  c5 {[%clk 0:01:44]} 17. Nb5 {[%clk 0:02:54]}  O-O {[%clk 0:01:43]} 18. Nc7 {[%clk 0:02:42]}  Rac8 {[%clk 0:01:37]} 19. Qd5+ {[%clk 0:02:41]}  Qf7 {[%clk 0:01:35]} 20. Ne6 {[%clk 0:02:40]}  Rfe8 {[%clk 0:01:33]} 21. Rad1 {[%clk 0:02:34]}  Rxe6 {[%clk 0:01:23]} 22. Qxd7 {[%clk 0:02:34]}  Qxd7 {[%clk 0:01:24]} 23. Rxd7 {[%clk 0:02:34]}  Rxe4 {[%clk 0:01:22]} 24. Rxa7 {[%clk 0:02:29]}  f5 {[%clk 0:01:15]} 25. Rd1 {[%clk 0:02:24]}  Bxb2 {[%clk 0:01:12]} 26. Rdd7 {[%clk 0:02:20]}  f4 {[%clk 0:01:09]} 27. Bd2 {[%clk 0:02:21]}  c4 {[%clk 0:01:06]} 28. Bb4 {[%clk 0:02:13]}  Bf6 {[%clk 0:00:57]} 29. Rd6 {[%clk 0:01:58]}  Be7 {[%clk 0:00:29]} 30. Rxb6 {[%clk 0:01:58]}  c3 {[%clk 0:00:14]} 31. Bxe7 {[%clk 0:01:51]}  c2 {[%clk 0:00:15]} 32. Ba3 {[%clk 0:01:51]}  c1=Q+ {[%clk 0:00:15]} 33. Bxc1 {[%clk 0:01:51]}  Rxc1+ {[%clk 0:00:14]} 34. Kh2 {[%clk 0:01:51]}  Rc8 {[%clk 0:00:10]} 35. Rbb7 {[%clk 0:01:51]}  Re2 {[%clk 0:00:10]} 36. Rg7+ {[%clk 0:01:50]}  Kf8 {[%clk 0:00:10]} 37. Rxh7 {[%clk 0:01:51]}  Kg8 {[%clk 0:00:09]} 38. Rhg7+ {[%clk 0:01:42]}  Kh8 {[%clk 0:00:10]} 39. Rxg6 {[%clk 0:01:43]}  Rxf2 {[%clk 0:00:09]} 40. Ra5 {[%clk 0:01:35]}  Kh7 {[%clk 0:00:09]} 41. Rg4 {[%clk 0:01:35]}  f3 {[%clk 0:00:08]} 42. Rh5# {[%clk 0:01:35]} 1-0


[Site "https://www.chess.com"]

[Event "Titled Tuesday Blitz December 06 Early 2022"]
[White "Levine, David"]
[Black "Kashtanov, Ruslan"]
[WhiteFideId "2011611"]
[BlackFideId "4124871"]
[WhiteElo "2188"]
[BlackElo "2276"]
[Result "0-1"]
[Round "02"]
[TimeControl "180+1"]
[Date "2022.12.07"]
[WhiteClock "0:00:08"]
[BlackClock "0:00:25"]

1. d4 {[%clk 0:02:53]}  Nf6 {[%clk 0:02:59]} 2. c4 {[%clk 0:02:53]}  g6 {[%clk 0:02:59]} 3. g3 {[%clk 0:02:53]}  Bg7 {[%clk 0:02:59]} 4. Bg2 {[%clk 0:02:53]}  O-O {[%clk 0:02:57]} 5. Nf3 {[%clk 0:02:53]}  c5 {[%clk 0:02:55]} 6. d5 {[%clk 0:02:52]}  e6 {[%clk 0:02:54]} 7. Nc3 {[%clk 0:02:52]}  exd5 {[%clk 0:02:54]} 8. cxd5 {[%clk 0:02:51]}  d6 {[%clk 0:02:55]} 9. O-O {[%clk 0:02:51]}  Re8 {[%clk 0:02:55]} 10. Bf4 {[%clk 0:02:49]}  Bf5 {[%clk 0:02:50]} 11. Qd2 {[%clk 0:02:43]}  Ne4 {[%clk 0:02:37]} 12. Nxe4 {[%clk 0:02:42]}  Bxe4 {[%clk 0:02:38]} 13. Rfe1 {[%clk 0:02:28]}  Nd7 {[%clk 0:01:50]} 14. Bxd6 {[%clk 0:02:24]}  Qb6 {[%clk 0:01:50]} 15. Bf4 {[%clk 0:02:20]}  Qxb2 {[%clk 0:01:49]} 16. Rad1 {[%clk 0:02:00]}  Qxd2 {[%clk 0:01:49]} 17. Rxd2 {[%clk 0:02:00]}  Bc3 {[%clk 0:01:48]} 18. Red1 {[%clk 0:01:53]}  Bxd2 {[%clk 0:01:45]} 19. Rxd2 {[%clk 0:01:53]}  c4 {[%clk 0:01:40]} 20. Ng5 {[%clk 0:01:37]}  c3 {[%clk 0:01:33]} 21. Rd4 {[%clk 0:01:06]}  Bxg2 {[%clk 0:01:32]} 22. Kxg2 {[%clk 0:01:06]}  Rxe2 {[%clk 0:01:30]} 23. Rc4 {[%clk 0:01:02]}  c2 {[%clk 0:01:21]} 24. Bc1 {[%clk 0:00:57]}  Ne5 {[%clk 0:01:16]} 25. Rc3 {[%clk 0:00:53]}  h6 {[%clk 0:00:56]} 26. Nh3 {[%clk 0:00:51]}  b5 {[%clk 0:00:42]} 27. Ng1 {[%clk 0:00:42]}  b4 {[%clk 0:00:34]} 28. Rc5 {[%clk 0:00:36]}  Nd3 {[%clk 0:00:32]} 29. Nxe2 {[%clk 0:00:27]}  Nxc5 {[%clk 0:00:32]} 30. Bxh6 {[%clk 0:00:13]}  Nd3 {[%clk 0:00:27]} 31. Kf3 {[%clk 0:00:08]}  Re8 {[%clk 0:00:25]} 0-1


[Site "https://www.chess.com"]

[Event "Titled Tuesday Blitz December 06 Early 2022"]
[White "Lewicki, Miroslaw"]
[Black "Galchenko, Matvey"]
[WhiteFideId "1113380"]
[BlackFideId "24175480"]
[WhiteElo "2191"]
[BlackElo "2404"]
[Result "1-0"]
[Round "02"]
[TimeControl "180+1"]
[Date "2022.12.06"]
[WhiteClock "0:00:06"]
[BlackClock "0:00:07"]

1. g3 {[%clk 0:02:55]}  d5 {[%clk 0:02:57]} 2. Bg2 {[%clk 0:02:55]}  Bf5 {[%clk 0:02:58]} 3. Nf3 {[%clk 0:02:56]}  c6 {[%clk 0:02:58]} 4. O-O {[%clk 0:02:56]}  Nd7 {[%clk 0:02:58]} 5. d3 {[%clk 0:02:57]}  e6 {[%clk 0:02:59]} 6. Re1 {[%clk 0:02:58]}  Ngf6 {[%clk 0:02:59]} 7. Nbd2 {[%clk 0:02:57]}  Nc5 {[%clk 0:02:37]} 8. c3 {[%clk 0:02:56]}  Be7 {[%clk 0:02:36]} 9. Nb3 {[%clk 0:02:55]}  O-O {[%clk 0:02:34]} 10. Qc2 {[%clk 0:02:54]}  a5 {[%clk 0:02:33]} 11. Nxc5 {[%clk 0:02:53]}  Bxc5 {[%clk 0:02:34]} 12. e4 {[%clk 0:02:53]}  Bg6 {[%clk 0:02:34]} 13. Ne5 {[%clk 0:02:46]}  Bh5 {[%clk 0:02:28]} 14. d4 {[%clk 0:02:44]}  Be7 {[%clk 0:02:24]} 15. exd5 {[%clk 0:02:42]}  exd5 {[%clk 0:02:24]} 16. Bf4 {[%clk 0:02:41]}  Re8 {[%clk 0:02:20]} 17. h3 {[%clk 0:02:37]}  Bd6 {[%clk 0:02:16]} 18. Qb3 {[%clk 0:02:29]}  Ra7 {[%clk 0:01:46]} 19. g4 {[%clk 0:02:27]}  a4 {[%clk 0:01:45]} 20. Qd1 {[%clk 0:02:23]}  Bg6 {[%clk 0:01:37]} 21. Nxg6 {[%clk 0:02:08]}  hxg6 {[%clk 0:01:37]} 22. Be5 {[%clk 0:02:08]}  Bxe5 {[%clk 0:01:32]} 23. dxe5 {[%clk 0:02:08]}  Nd7 {[%clk 0:01:33]} 24. Qd4 {[%clk 0:02:04]}  Qb6 {[%clk 0:01:32]} 25. Qxb6 {[%clk 0:02:01]}  Nxb6 {[%clk 0:01:32]} 26. f4 {[%clk 0:01:59]}  g5 {[%clk 0:01:25]} 27. fxg5 {[%clk 0:01:53]}  Nc4 {[%clk 0:01:25]} 28. Re2 {[%clk 0:01:40]}  Rxe5 {[%clk 0:01:22]} 29. Rae1 {[%clk 0:01:41]}  Rxe2 {[%clk 0:01:21]} 30. Rxe2 {[%clk 0:01:42]}  Kf8 {[%clk 0:01:21]} 31. h4 {[%clk 0:01:38]}  Ra8 {[%clk 0:01:04]} 32. b3 {[%clk 0:01:16]}  axb3 {[%clk 0:01:03]} 33. axb3 {[%clk 0:01:17]}  Nd6 {[%clk 0:01:03]} 34. h5 {[%clk 0:00:59]}  Kg8 {[%clk 0:00:54]} 35. Re7 {[%clk 0:00:57]}  Ra1+ {[%clk 0:00:39]} 36. Kh2 {[%clk 0:00:55]}  Rc1 {[%clk 0:00:37]} 37. Rd7 {[%clk 0:00:51]}  Nb5 {[%clk 0:00:37]} 38. g6 {[%clk 0:00:37]}  fxg6 {[%clk 0:00:36]} 39. hxg6 {[%clk 0:00:38]}  Kf8 {[%clk 0:00:33]} 40. Rf7+ {[%clk 0:00:23]}  Kg8 {[%clk 0:00:29]} 41. Rxb7 {[%clk 0:00:23]}  Kf8 {[%clk 0:00:30]} 42. Rf7+ {[%clk 0:00:18]}  Kg8 {[%clk 0:00:30]} 43. c4 {[%clk 0:00:17]}  dxc4 {[%clk 0:00:27]} 44. Bxc6 {[%clk 0:00:17]}  Rc2+ {[%clk 0:00:18]} 45. Kh3 {[%clk 0:00:14]}  Rc3+ {[%clk 0:00:10]} 46. Kh4 {[%clk 0:00:14]}  cxb3 {[%clk 0:00:08]} 47. Bxb5 {[%clk 0:00:05]}  b2 {[%clk 0:00:07]} 48. Rb7 {[%clk 0:00:05]}  Kf8 {[%clk 0:00:08]} 49. Bd7 {[%clk 0:00:04]}  Rc7 {[%clk 0:00:08]} 50. Rb8+ {[%clk 0:00:04]}  Ke7 {[%clk 0:00:08]} 51. Bf5 {[%clk 0:00:05]}  Kf6 {[%clk 0:00:07]} 52. Rb6+ {[%clk 0:00:05]}  Ke5 {[%clk 0:00:07]} 53. Rxb2 {[%clk 0:00:05]}  Rc3 {[%clk 0:00:07]} 54. Re2+ {[%clk 0:00:05]}  Kf6 {[%clk 0:00:07]} 55. Re6# {[%clk 0:00:06]} 1-0


[Site "https://www.chess.com"]